bitfinex/quotes_ETHUSD_20220308
["timestamp","ask_amount","ask_price","bid_price","bid_amount"]
[1646711996399,4.45461965,2550.6,2550.1,0.63318537]
[1646711996400,1.66988273,2550.5,2550.1,0.63318537]
[1646711996599,3.5,2550.4,2550.2,0.63318537]
[1646711996802,1.91683417,2550.3,2549.8,1.11775293]
[1646711997002,0.95461965,2550.2,2549.9,1.35053123]
[1646711997200,0.96479364,2550.1,2549.9,1.35053123]
[1646711997404,0.96221452,2550.3,2549.9,1.35053123]
[1646711997600,0.3,2550.5,2550.3,0.55852006]
[1646711997803,1.8775382,2550.4,2550.3,0.55852006]
[1646711998001,1.8775382,2550.4,2550.3,1.53906006]
[1646711998201,1.8775382,2550.4,2550.3,2.15046376]
[1646711998400,0.98278511,2550.4,2550.3,2.15046376]
[1646711998803,0.98278511,2550.5,2550.3,2.15046376]
[1646711999102,0.98278511,2550.4,2550.3,1.53906006]
[1646711999401,0.98278511,2550.4,2550.3,2.15053239]
[1646711999601,0.3,2550.6,2550.3,2.15617394]
[1646711999602,0.98278511,2550.5,2550.3,2.15617394]
[1646711999803,2.06790053,2550.5,2550.4,0.61147233]
[1646712000442,2.06790053,2550.5,2550.4,0.5747579]
[1646712001646,0.98278511,2550.5,2550.4,0.5747579]
[1646712001948,0.98278511,2550.5,2550.4,4.0747579]
[1646712002145,0.00107304,2550.7,2550.6,0.98034]
[1646712002347,0.00107304,2550.7,2550.6,4.48034]
[1646712002655,0.0098304,2551.4,2551.1,0.3925]
[1646712002846,0.0088704,2551.4,2551.2,6.2465]
[1646712003047,0.0088704,2551.4,2551.3,6.2465]
[1646712003247,0.0088704,2551.4,2551.3,7.22639]
[1646712003448,0.0088704,2551.4,2551.3,24.79961103]
[1646712003896,0.0210575,2551.5,2551.4,12.3725]
[1646712004197,0.0387983,2551.5,2551.4,14.7022374]
[1646712004897,0.05152413,2551.5,2551.4,14.7022374]
[1646712005096,0.05152413,2551.5,2551.4,2.7222374]
[1646712005299,0.05152413,2551.5,2551.4,1.7222374]
[1646712005496,0.05152413,2551.5,2551.4,6.2222374]
[1646712005698,0.05152413,2551.5,2551.4,0.3925]
[1646712006298,0.05152413,2551.5,2551.4,12.3725]
[1646712006904,0.05152413,2551.5,2551.4,15.8725]
[1646712007106,0.11094859,2551.6,2551.5,17.3725]
[1646712007405,0.0558342,2551.9,2551.8,15.70611]
[1646712007654,0.0190057,2552.1,2551.9,15.8725]
[1646712007857,0.0190057,2552.1,2552.0,4.1254309]
[1646712009054,0.0190057,2552.1,2552.0,4.3203905]
[1646712009254,0.0190057,2552.1,2552.0,4.5153501]
[1646712009656,0.0190057,2552.1,2552.0,3.3286092]
[1646712010458,3.9190057,2552.1,2552.0,3.3286092]
[1646712010657,5.11151206,2552.1,2552.0,3.3286092]
[1646712010857,5.11151206,2552.1,2552.0,0.3899192]
[1646712013696,6.41151206,2552.1,2551.8,0.00564145]
[1646712013896,6.80401206,2552.1,2550.5,0.71770662]
[1646712014097,0.71622308,2552.0,2551.8,4.145e-05]
[1646712014299,1.01526308,2551.9,2551.8,4.145e-05]
[1646712014497,3.3,2551.9,2551.8,4.145e-05]
[1646712014698,5.25368411,2551.9,2551.8,4.145e-05]
[1646712015145,5.25368411,2551.9,2550.4,0.98052]
[1646712015146,0.98054,2551.6,2550.4,0.98052]
[1646712015346,1.04388934,2550.5,2550.4,0.98052]
[1646712015546,1.04388934,2550.5,2550.3,0.55852006]
[1646712016244,0.00096,2551.3,2550.4,6.2465]
[1646712016449,0.71243206,2551.5,2550.5,1.96043]
[1646712016450,3.5,2551.4,2550.5,1.96043]
[1646712016748,0.3,2551.8,2550.7,1.94411118]
[1646712016949,0.00096,2551.5,2550.7,1.93983416]
[1646712017148,0.00096,2551.9,2550.7,1.93983416]
[1646712017350,0.98667884,2551.0,2550.7,1.93983416]
[1646712017749,0.98667884,2551.0,2550.4,1.96082]
[1646712018793,0.98667884,2551.0,2550.6,0.00564271]
[1646712019600,1.28667884,2551.0,2550.6,0.00564271]
[1646712019802,1.28667884,2551.0,2550.3,0.55852006]
[1646712020200,1.28667884,2551.0,2550.7,0.0056426]
[1646712020399,0.00103095,2550.6,2550.3,0.55852006]
[1646712020603,0.96348556,2550.5,2550.4,0.64754704]
[1646712021402,0.96348556,2550.5,2550.3,0.55852006]
[1646712023655,0.96348556,2550.5,2550.3,0.56129522]
[1646712024656,1.26348556,2550.5,2550.3,0.55852006]
[1646712024856,0.93633166,2550.4,2550.3,0.55852006]
[1646712025056,0.93633166,2550.4,2550.3,0.5641631]
[1646712025655,0.93633166,2550.4,2549.7,0.06558092]
[1646712025656,5.0,2550.1,2549.7,0.06558092]
[1646712025858,0.94595986,2550.0,2549.7,0.06558092]
[1646712026297,1.24595986,2550.0,2549.7,0.10992016]
[1646712026500,0.3,2550.0,2549.7,0.10992016]
[1646712026702,1.3272915,2549.9,2549.7,0.10992016]
[1646712027600,4.5,2549.8,2549.6,0.05141982]
[1646712027801,4.5,2549.6,2549.1,0.05141981]
[1646712028200,1.3,2549.6,2549.1,0.09575905]
[1646712028403,1.21611158,2549.2,2549.1,0.09575905]
[1646712028802,1.21611158,2549.2,2549.1,0.7106806]
[1646712029001,1.28129,2549.6,2549.1,0.7106806]
[1646712029200,1.28129,2549.6,2549.2,0.61492155]
[1646712029201,0.3,2549.6,2549.2,0.61492155]
[1646712029601,0.3,2549.7,2549.2,0.61492155]
[1646712029804,2.2495,2550.2,2549.2,0.61492155]
[1646712030044,1.04721969,2549.8,2549.2,1.52914968]
[1646712030243,1.20434869,2549.8,2549.3,0.61492155]
[1646712030443,1.34721969,2549.8,2549.3,0.61492155]
[1646712031047,1.34721969,2549.8,2549.4,0.00545773]
[1646712031849,1.34721969,2549.8,2549.1,0.09575905]
[1646712032050,1.34721969,2549.8,2549.2,0.61412315]
[1646712032051,0.98452526,2549.3,2549.2,0.61412315]
[1646712032651,0.3,2549.4,2549.2,0.61412315]
[1646712033052,5.2,2549.9,2549.2,0.61412315]
[1646712033450,5.2,2549.9,2549.1,0.09402017]
[1646712033651,0.90147766,2549.8,2549.2,1.02765349]
[1646712033901,0.90147766,2549.8,2549.3,0.61359336]
[1646712034500,0.90147766,2549.8,2549.4,0.0053275]
[1646712035500,0.90147766,2549.8,2549.1,0.08867848]
[1646712035901,0.90147766,2549.8,2549.5,0.00533801]
[1646712036706,0.90147766,2549.8,2549.1,0.08867848]
[1646712036904,0.90147766,2549.8,2549.5,0.00533796]
[1646712037747,0.90147766,2549.8,2549.4,0.98089]
[1646712038148,0.93959216,2549.8,2549.5,0.00525306]
[1646712039047,0.93959216,2549.8,2549.1,0.08867848]
[1646712039251,0.93959216,2549.8,2549.5,0.00525158]
[1646712040255,0.93959216,2549.8,2549.1,0.08867848]
[1646712040455,0.93959216,2549.8,2549.5,0.00525158]
[1646712041503,0.93959216,2549.8,2549.1,0.08867848]
[1646712041701,0.00642315,2549.4,2549.1,0.08867848]
[1646712042104,0.02423215,2549.4,2549.1,0.08867848]
[1646712042803,1.0980958,2549.3,2549.1,0.08867848]
[1646712043103,1.4159048,2549.3,2549.1,0.09403254]
[1646712043905,1.4159048,2549.3,2549.1,0.08867848]
[1646712044104,1.4159048,2549.3,2549.1,0.09403259]
[1646712045148,1.4159048,2549.3,2549.1,0.08867848]
[1646712045349,1.4159048,2549.3,2549.1,0.09403259]
[1646712045754,4.4159048,2549.3,2549.1,0.04969335]
[1646712046154,5.5730718,2549.3,2549.1,0.04433924]
[1646712046554,5.4159048,2549.3,2549.1,0.04968975]
[1646712047458,5.4159048,2549.3,2549.1,0.04433924]
[1646712047655,5.4159048,2549.3,2549.1,0.04968975]
[1646712047854,5.0,2549.2,2548.9,0.10992016]
[1646712048055,3.0,2549.0,2548.6,0.01416112]
[1646712048357,4.3,2548.9,2548.6,0.01416112]
[1646712048557,0.3,2548.7,2548.6,0.01416112]
[1646712048996,1.17407373,2548.6,2548.3,0.04433924]
[1646712049195,3.0,2548.5,2548.3,0.04433924]
[1646712049396,3.9817112,2548.5,2548.3,0.04433924]
[1646712049595,0.3,2548.4,2548.3,0.04433924]
[1646712050207,0.317809,2548.4,2548.3,0.04681839]
[1646712051002,0.317809,2548.4,2548.3,0.04433924]
[1646712051401,2.2813628,2548.4,2548.2,0.00247578]
[1646712051604,2.5813128,2548.4,2548.2,0.00247578]
[1646712051801,3.5813128,2548.4,2548.2,0.00247578]
[1646712052201,3.9738128,2548.4,2547.2,0.98173]
[1646712052650,1.06555792,2548.3,2548.2,0.00535618]
[1646712053247,1.08336692,2548.3,2548.2,0.00535618]
[1646712053447,0.017809,2548.3,2547.5,1.1923096]
[1646712053650,0.017809,2548.3,2548.1,0.00547887]
[1646712054652,0.017809,2548.3,2547.3,1.96319]
[1646712055055,0.017809,2548.3,2548.1,0.00547892]
[1646712055855,0.017809,2548.3,2547.3,1.96319]
[1646712056055,0.017809,2548.3,2547.8,1.05310922]
[1646712056312,0.017809,2548.3,2548.1,0.00547892]
[1646712057106,0.017809,2548.3,2547.8,1.05310922]
[1646712057406,0.017809,2548.3,2548.1,0.00533735]
[1646712058206,0.017809,2548.3,2547.8,1.05310922]
[1646712058617,0.017809,2548.3,2548.1,0.00533735]
[1646712059406,0.017809,2548.3,2547.8,1.05310922]
[1646712059806,0.017809,2548.3,2548.1,0.00533735]
[1646712060251,0.9995334,2548.3,2548.1,0.00533735]
[1646712060647,0.9995334,2548.3,2547.2,3.5]
[1646712060648,0.3,2548.2,2547.2,3.8925]
[1646712060849,0.3,2548.2,2547.3,1.00703412]
[1646712061049,0.3,2548.2,2548.1,0.0053469]
[1646712061249,1.27772217,2548.2,2548.1,0.0053469]
[1646712061652,1.27772217,2548.2,2547.6,0.0213912]
[1646712061653,0.00117704,2547.9,2547.6,0.0213912]
[1646712062052,0.00117704,2547.9,2547.3,0.98169]
[1646712062252,0.01898604,2547.9,2547.6,0.02139101]
[1646712063054,0.01898604,2547.9,2547.4,0.99786971]
[1646712064497,0.01898604,2547.9,2547.5,0.0053508]
[1646712064702,0.19046141,2547.8,2547.5,0.0053508]
[1646712065099,0.01898604,2547.9,2547.5,0.0053508]
[1646712065402,3.0,2547.6,2547.1,0.02140642]
[1646712065601,0.9820895,2547.4,2546.6,1.5692]
[1646712065803,0.91596072,2547.1,2546.5,1.0494503]
[1646712066003,0.91596072,2547.1,2546.6,0.61521728]
[1646712066201,1.21596072,2547.1,2546.6,0.61521728]
[1646712066402,1.23376972,2547.1,2546.6,0.61521728]
[1646712066602,0.317809,2547.1,2546.6,0.61521728]
[1646712066801,0.017809,2547.1,2546.6,0.61521728]
[1646712067002,0.017809,2547.1,2546.7,0.00246773]
[1646712067648,0.017809,2547.1,2546.9,1.01029686]
[1646712067848,0.017809,2547.1,2546.7,0.00246773]
[1646712068052,0.017809,2547.1,2546.4,0.61564251]
[1646712068250,0.017809,2547.1,2546.8,0.0026063]
[1646712068651,0.017809,2547.1,2546.8,0.61824881]
[1646712068850,0.017809,2547.1,2546.8,1.01074881]
[1646712069150,0.017809,2547.1,2546.9,1.00814251]
[1646712069351,0.017809,2547.1,2547.0,0.61564251]
[1646712069551,0.017809,2547.1,2547.0,1.59566787]
[1646712069749,0.017809,2547.1,2547.0,2.57740787]
[1646712071404,0.017809,2547.1,2546.9,2.36147111]
[1646712071603,0.017809,2547.1,2546.9,2.35598]
[1646712071801,0.017809,2547.1,2546.9,2.36131908]
[1646712072402,0.017809,2547.1,2546.9,1.49524251]
[1646712072602,0.017809,2547.1,2546.9,0.00533908]
[1646712072804,3.917809,2547.1,2546.7,0.3925]
[1646712073005,4.217809,2547.1,2546.9,0.00533913]
[1646712074105,4.217809,2547.1,2546.8,1.14205071]
[1646712074306,4.217809,2547.1,2546.9,0.62097067]
[1646712074508,5.217809,2547.1,2546.9,0.00533913]
[1646712075346,5.217809,2547.1,2546.9,0.00534939]
[1646712076349,5.217809,2547.1,2546.8,0.98358618]
[1646712076549,5.217809,2547.1,2546.6,1.96365]
[1646712077054,5.375092,2547.1,2546.6,1.96365]
[1646712077250,5.217809,2547.1,2546.6,1.96365]
[1646712077654,5.217809,2547.1,2546.9,1.08086508]
[1646712077854,4.217809,2547.1,2546.9,1.08086508]
[1646712078051,3.917809,2547.1,2546.9,3.04443508]
[1646712079096,3.917809,2547.1,2546.9,3.05008146]
[1646712079997,3.917809,2547.1,2546.9,3.04443508]
[1646712080201,4.217809,2547.1,2546.9,1.96921638]
[1646712080601,4.217809,2547.1,2546.9,0.00564638]
[1646712081200,4.217809,2547.1,2546.8,0.9819]
[1646712081409,4.217809,2547.1,2546.9,1.07657925]
[1646712081602,2.51083225,2547.1,2546.9,1.07657925]
[1646712083247,2.81083225,2547.1,2546.9,1.07657925]
[1646712083849,2.81083225,2547.1,2546.9,1.0821239]
[1646712084251,2.51083225,2547.1,2547.0,0.58570039]
[1646712085256,2.51083225,2547.1,2547.0,1.56748039]
[1646712087398,2.51083225,2547.1,2547.0,0.58570039]
[1646712089298,2.50983225,2547.1,2547.0,0.58570039]
[1646712091255,2.50983225,2547.1,2547.0,1.56747039]
[1646712091651,2.50983225,2547.1,2547.0,0.58570039]
[1646712096108,2.50983225,2547.1,2547.0,1.56747039]
[1646712096513,2.50983225,2547.1,2547.0,0.58570039]
[1646712098148,2.80983225,2547.1,2547.0,0.58570039]
[1646712100252,3.80983225,2547.1,2547.0,0.58570039]
[1646712100452,3.96711425,2547.1,2547.0,0.58570039]
[1646712100851,3.80983225,2547.1,2547.0,0.58570039]
[1646712101702,2.10282386,2547.1,2547.0,0.58570039]
[1646712102099,1.10282386,2547.1,2547.0,0.58570039]
[1646712103302,1.40282386,2547.1,2547.0,0.58570039]
[1646712103703,5.93481275,2547.1,2547.0,0.58570039]
[1646712103902,2.43481275,2547.1,2547.0,0.58570039]
[1646712104106,3.43481275,2547.1,2547.0,0.58570039]
[1646712104302,2.43481275,2547.1,2547.0,0.58570039]
[1646712104502,3.43481275,2547.1,2547.0,0.58570039]
[1646712104702,2.43481275,2547.1,2547.0,0.58570039]
[1646712104903,3.43481275,2547.1,2547.0,0.58570039]
[1646712105146,4.62106881,2547.1,2547.0,0.58570039]
[1646712105347,3.43481275,2547.1,2547.0,0.58570039]
[1646712106654,2.43481275,2547.1,2547.0,1.51487747]
[1646712106851,3.43481275,2547.1,2547.0,1.51487747]
[1646712107052,2.43481275,2547.1,2547.0,0.58570039]
[1646712107253,3.43481275,2547.1,2547.0,0.58570039]
[1646712107454,2.43481275,2547.1,2547.0,0.58570039]
[1646712107654,3.43481275,2547.1,2547.0,0.58570039]
[1646712107854,2.43481275,2547.1,2547.0,0.58570039]
[1646712108653,2.43481275,2547.1,2547.0,1.55595077]
[1646712108899,2.59209775,2547.1,2547.0,1.55380502]
[1646712109099,2.43481275,2547.1,2547.0,1.55380502]
[1646712109899,2.43481275,2547.1,2547.0,2.27151164]
[1646712109900,1.40282386,2547.1,2547.0,2.27151164]
[1646712112646,1.56010186,2547.1,2547.0,2.27151164]
[1646712113047,1.40282386,2547.1,2547.0,2.27151164]
[1646712114249,1.40282386,2547.1,2547.0,1.55380502]
[1646712114650,1.40282386,2547.1,2547.0,0.58355464]
[1646712116612,5.06012386,2547.1,2547.0,0.58355464]
[1646712116909,4.90282386,2547.1,2547.0,0.58355464]
[1646712117111,5.90282386,2547.1,2547.0,0.58355464]
[1646712117311,2.40282386,2547.1,2547.0,0.58355464]
[1646712117808,1.40282386,2547.1,2547.0,0.58355464]
[1646712118208,2.11525592,2547.1,2547.0,0.58355464]
[1646712118610,1.40282386,2547.1,2547.0,0.58355464]
[1646712121756,0.42095305,2547.1,2547.0,0.58355464]
[1646712123158,0.72095305,2547.1,2547.0,0.58355464]
[1646712123559,0.42095305,2547.1,2547.0,0.58355464]
[1646712123811,0.36953325,2547.1,2547.0,0.58355464]
[1646712124001,0.36953325,2547.1,2547.0,1.49756126]
[1646712124599,0.36953325,2547.1,2547.0,0.77985464]
[1646712124800,0.0078284,2547.1,2547.0,15.11385464]
[1646712125004,0.00117704,2547.9,2547.2,14.334]
[1646712125201,0.00117704,2547.9,2547.4,15.31548]
[1646712125401,0.00117704,2547.9,2547.4,15.70798]
[1646712125816,0.00117704,2547.9,2547.4,16.62225105]
[1646712126008,0.00117704,2547.9,2547.7,14.334]
[1646712126204,0.00117704,2547.9,2547.8,0.9814]
[1646712127009,0.00117704,2547.9,2547.8,15.3154]
[1646712127212,0.00117704,2547.9,2547.8,15.7079]
[1646712127562,0.71243206,2548.7,2547.9,0.0011]
[1646712127757,10.04468809,2549.5,2548.1,14.7265]
[1646712127758,0.71243206,2548.9,2548.1,14.7265]
[1646712127956,0.71243206,2548.9,2548.1,15.2175]
[1646712128157,1.43597236,2549.4,2549.1,1.078445]
[1646712128158,0.71243206,2549.2,2549.1,1.078445]
[1646712128357,0.71243206,2549.3,2549.1,1.078445]
[1646712128561,0.157153,2549.2,2549.1,1.078445]
[1646712128760,0.72282378,2549.3,2549.1,5.394225]
[1646712129058,1.02251782,2549.2,2549.1,6.537525]
[1646712129458,1.02251782,2549.2,2549.1,18.517525]
[1646712129958,1.02251782,2549.3,2549.1,18.517525]
[1646712130163,0.00642315,2549.4,2549.1,7.518405]
[1646712130164,1.02251782,2549.2,2549.1,7.518405]
[1646712130358,1.02251782,2549.2,2549.1,6.537525]
[1646712130560,1.02251782,2549.2,2549.1,18.517525]
[1646712130761,1.02251782,2549.3,2549.1,18.517525]
[1646712130960,0.02617427,2549.7,2549.3,11.98]
[1646712131159,0.02617427,2549.7,2549.6,14.334]
[1646712131610,0.0153125,2549.7,2549.6,14.334]
[1646712132009,0.00547965,2550.0,2549.7,0.0153]
[1646712132211,0.02191725,2550.2,2549.8,12.96038]
[1646712132212,0.00660475,2550.2,2549.8,12.96038]
[1646712132408,0.00660475,2550.2,2550.1,2.354]
[1646712132608,0.00660475,2550.2,2550.1,14.334]
[1646712133010,0.157072,2550.5,2550.2,1.07263055]
[1646712133209,0.157072,2550.5,2550.2,13.86063055]
[1646712133407,0.157072,2550.5,2550.2,17.36063055]
[1646712133908,0.3927,2550.8,2550.2,17.36063055]
[1646712134108,0.3927,2550.8,2550.6,2.354]
[1646712134308,0.3927,2550.8,2550.6,14.334]
[1646712134907,0.01031092,2551.0,2550.6,14.334]
[1646712135153,0.01031092,2551.0,2550.8,1.07190621]
[1646712135354,7.65,2551.2,2550.8,1.07190621]
[1646712135651,7.66031135,2551.2,2550.7,0.98029]
[1646712136455,7.65,2551.2,2550.7,0.98029]
[1646712136656,0.00535933,2551.1,2550.7,0.98029]
[1646712137257,0.00535933,2551.1,2550.8,1.10448716]
[1646712137656,7.65,2551.2,2550.8,1.10448716]
[1646712138058,0.0054827,2551.1,2550.8,1.10448716]
[1646712138458,0.0054827,2551.1,2550.7,0.98029]
[1646712138658,0.0054827,2551.1,2550.6,4.31458]
[1646712138898,0.0054827,2551.1,2550.3,1.96083]
[1646712139098,7.65,2551.2,2550.3,1.96083]
[1646712139302,0.00548275,2551.0,2550.4,0.196]
[1646712139498,0.00548275,2551.0,2550.5,0.98045]
[1646712139700,0.00548275,2551.0,2550.6,0.196]
[1646712139900,0.00548275,2551.0,2550.6,2.15662]
[1646712140101,7.65,2551.2,2550.6,2.15662]
[1646712140502,0.00548286,2550.9,2550.8,1.22857608]
[1646712140699,0.00548286,2550.9,2550.6,2.15662]
[1646712141302,8.65,2551.2,2550.6,0.196]
[1646712141503,0.00517974,2550.9,2550.6,0.196]
[1646712141703,1.0602605,2550.8,2550.2,0.54771024]
[1646712142102,1.3602605,2550.8,2550.2,0.54771024]
[1646712142304,0.3,2550.8,2550.2,0.54771024]
[1646712142752,0.30096,2551.1,2550.2,0.54771024]
[1646712142953,0.00517999,2550.6,2550.2,0.54771024]
[1646712143353,0.00517999,2550.6,2550.2,1.52826024]
[1646712143756,1.31793327,2550.8,2550.2,1.52826024]
[1646712143956,0.00518009,2550.5,2550.2,1.52826024]
[1646712144955,0.3,2550.8,2550.2,1.52826024]
[1646712145155,0.00506056,2550.5,2550.2,1.52826024]
[1646712147310,5.2,2550.9,2550.2,1.52826024]
[1646712147510,0.00506056,2550.5,2550.2,1.52826024]
[1646712148012,0.00506056,2550.5,2550.3,2.354]
[1646712148209,0.00506056,2550.5,2550.3,16.29484]
[1646712148610,5.2,2550.9,2550.7,1.17753064]
[1646712148812,5.2,2550.9,2550.6,0.98041]
[1646712149411,4.2,2550.9,2550.6,0.98041]
[1646712149910,3.9,2550.9,2550.6,0.98041]
[1646712150152,3.90507226,2550.9,2550.7,0.948887]
[1646712150354,3.90507226,2550.9,2550.8,1.9604]
[1646712151058,3.9,2550.9,2550.8,1.9604]
[1646712151255,3.9,2550.9,2550.3,1.96084]
[1646712151458,3.9,2550.9,2550.0,6.44094]
[1646712151758,3.9,2550.9,2550.0,2.94094]
[1646712152158,1.11286286,2550.7,2550.1,2.1192795]
[1646712152364,0.00507395,2550.6,2550.1,1.1386895]
[1646712153158,0.00507395,2550.6,2550.1,2.1192695]
[1646712153361,1.41286286,2550.7,2550.1,2.1192695]
[1646712153563,0.00507405,2550.5,2550.1,2.1192695]
[1646712154402,0.00507405,2550.5,2550.1,0.98058]
[1646712154604,1.41286286,2550.7,2549.7,1.96236714]
[1646712154806,0.00507409,2550.4,2549.7,0.00108714]
[1646712155006,0.00507409,2550.4,2549.6,0.00507565]
[1646712155607,0.94467155,2549.7,2549.6,0.00507565]
[1646712155809,0.94467155,2549.7,2548.7,3.72737]
[1646712155810,1.24467155,2549.7,2548.8,1.96198]
[1646712156012,1.24467155,2549.7,2549.6,0.00507541]
[1646712157108,0.96279975,2549.3,2548.8,0.95204124]
[1646712157408,1.26279975,2549.3,2548.4,2.7048]
[1646712157654,1.26279975,2549.3,2548.2,17.85431188]
[1646712157852,1.26279975,2549.3,2549.0,0.3]
[1646712158253,1.26279975,2549.3,2548.2,17.85431188]
[1646712158254,1.26279975,2549.3,2548.2,3.5]
[1646712158456,1.26279975,2549.3,2548.6,0.00507619]
[1646712158655,1.26279975,2549.3,2548.6,1.08542327]
[1646712158858,0.3,2549.3,2548.6,1.08542327]
[1646712159256,0.3,2549.4,2548.6,1.08542327]
[1646712159456,0.3,2549.4,2548.6,1.08034708]
[1646712159656,0.30260978,2549.7,2548.8,0.00507984]
[1646712159959,0.87549344,2549.3,2548.8,0.00507984]
[1646712160156,1.17549344,2549.3,2548.8,0.00507984]
[1646712160556,1.17549344,2549.3,2548.7,0.98111]
[1646712160757,0.3,2549.3,2548.9,0.00507975]
[1646712160958,0.00260978,2549.7,2548.9,0.00507975]
[1646712161157,0.3,2549.4,2548.9,0.00507975]
[1646712161425,0.30260978,2549.7,2548.9,0.00507975]
[1646712161612,0.00260978,2549.7,2548.9,0.00507975]
[1646712161809,2.2033193,2549.9,2549.0,0.96824672]
[1646712162010,7.841,2550.3,2549.0,0.97332637]
[1646712162011,7.74757705,2550.3,2549.0,0.97332637]
[1646712162210,1.32705049,2550.2,2549.0,0.97332637]
[1646712162409,0.93455049,2550.1,2549.0,0.97332637]
[1646712163010,0.93455049,2550.1,2549.0,0.96824672]
[1646712163212,1.22278443,2549.9,2549.4,0.00507511]
[1646712163409,1.22278443,2549.9,2549.0,0.96824672]
[1646712163410,0.0009808,2549.1,2549.0,0.96824672]
[1646712165454,0.0009808,2549.1,2548.8,1.96198]
[1646712166255,0.0009808,2549.1,2548.6,0.98116]
[1646712166458,0.0009808,2549.1,2548.7,1.13653092]
[1646712166859,0.0009808,2549.1,2548.8,0.00565869]
[1646712167859,0.0009808,2549.1,2548.7,1.13653092]
[1646712168061,0.0009808,2549.1,2548.8,0.00565869]
[1646712168910,0.0009808,2549.1,2548.2,1.96245]
[1646712169105,0.0009808,2549.1,2548.3,0.63841358]
[1646712169309,0.0009808,2549.1,2548.8,0.00565869]
[1646712169506,1.04796708,2549.0,2548.8,0.00565869]
[1646712169706,1.34796708,2549.0,2548.8,0.00565869]
[1646712170210,1.34796708,2549.0,2548.4,1.12557414]
[1646712170407,1.34796708,2549.0,2548.5,0.63840784]
[1646712170606,1.34796708,2549.0,2548.8,0.00565874]
[1646712170807,0.3,2549.0,2548.8,0.00565874]
[1646712171009,0.3009808,2549.1,2548.8,0.00565874]
[1646712171412,0.94195905,2549.0,2548.4,1.12557414]
[1646712171611,0.94195905,2549.0,2548.8,0.00548898]
[1646712172015,1.92337065,2549.0,2548.8,0.00548898]
[1646712172215,0.94195905,2548.9,2548.8,0.00548898]
[1646712172415,1.24195905,2548.9,2548.8,0.00548898]
[1646712172655,2.44239569,2548.9,2548.2,1.06965506]
[1646712172855,0.94195905,2548.8,2548.3,0.02196025]
[1646712173856,0.94195905,2548.8,2548.2,1.06965506]
[1646712174155,0.94195905,2548.8,2548.4,0.00548934]
[1646712174358,6.70043664,2548.9,2548.4,0.00548934]
[1646712174557,0.94104324,2548.8,2548.4,0.00548934]
[1646712174957,0.94104324,2548.8,2548.2,1.06965506]
[1646712175356,0.94104324,2548.8,2548.5,0.00535407]
[1646712175557,6.70043664,2548.9,2548.5,0.00535407]
[1646712175755,5.2,2548.9,2548.5,0.00535407]
[1646712176155,5.2,2548.9,2548.2,1.06965506]
[1646712176410,5.2,2548.9,2548.3,0.63899433]
[1646712176611,5.2,2548.9,2548.6,0.00535397]
[1646712177013,5.2,2548.9,2548.6,1.03897728]
[1646712177209,4.2,2548.9,2548.6,1.03897728]
[1646712177411,3.9,2548.9,2548.6,1.03362331]
[1646712177812,3.9,2548.9,2548.7,0.63877096]
[1646712178911,3.9,2548.9,2548.7,0.64403075]
[1646712179115,0.3925,2549.6,2548.7,0.64403075]
[1646712179116,0.57684503,2550.0,2549.0,19.334]
[1646712179312,0.02102354,2550.6,2549.9,3.0]
[1646712179513,0.02102354,2550.6,2550.0,18.47659417]
[1646712179712,0.02102354,2550.6,2550.4,14.334]
[1646712180061,0.00096,2551.3,2551.2,1.01711428]
[1646712180269,0.00096,2551.7,2551.2,1.01711428]
[1646712180464,0.73109432,2551.7,2551.2,1.01711428]
[1646712180662,0.73109432,2551.6,2551.2,1.01711428]
[1646712180863,0.73109432,2551.5,2551.2,1.01711428]
[1646712181064,0.1958,2551.9,2551.3,0.98004]
[1646712181265,0.73128419,2551.8,2551.6,1.07972379]
[1646712181470,0.1958,2551.8,2551.7,0.97993]
[1646712181667,0.73130612,2551.8,2551.7,0.97993]
[1646712181868,0.73130612,2551.9,2551.7,0.97993]
[1646712182075,0.73130612,2551.8,2551.7,0.97993]
[1646712182473,0.73130612,2551.9,2551.6,1.95986]
[1646712182668,0.73694681,2551.9,2551.6,1.95986]
[1646712182869,0.73130612,2551.8,2551.3,1.96023]
[1646712183269,0.1958,2551.7,2551.4,1.08122878]
[1646712183470,0.73130612,2551.6,2551.3,1.33696819]
[1646712183670,0.3,2551.9,2551.3,1.33696819]
[1646712183671,0.00564091,2551.7,2551.3,2.41081509]
[1646712184611,4.2,2551.9,2551.3,2.41081509]
[1646712184809,0.69914133,2551.8,2551.3,2.41081509]
[1646712186012,0.69914133,2551.8,2551.5,0.98008]
[1646712186413,0.3,2551.9,2551.5,0.98008]
[1646712186614,0.69831424,2551.8,2551.5,0.98008]
[1646712186814,0.3190057,2552.1,2551.5,0.98008]
[1646712187216,0.6973922,2552.0,2551.5,0.98008]
[1646712187414,0.00563787,2551.8,2551.5,2.94001]
[1646712187659,0.00563787,2551.8,2551.6,1.95996]
[1646712188058,0.00563787,2551.8,2551.6,2.93992]
[1646712188257,0.0190057,2552.1,2551.6,2.93992]
[1646712188458,0.00563781,2551.8,2551.6,6.43992]
[1646712188659,0.00563781,2551.8,2551.7,3.5]
[1646712189360,0.00563781,2551.8,2551.7,4.46265427]
[1646712189663,0.00563776,2551.9,2551.7,5.44239847]
[1646712189862,0.00563776,2551.9,2551.8,1.95954]
[1646712190059,0.00563776,2551.9,2551.8,5.45954]
[1646712190460,0.00563776,2551.9,2551.8,1.95954]
[1646712190662,0.0190057,2552.1,2551.8,1.95954]
[1646712190865,0.00544738,2552.0,2551.8,3.91917]
[1646712191507,0.00544738,2552.0,2551.9,0.97982]
[1646712191909,0.0190057,2552.1,2551.9,0.97982]
[1646712192110,0.00544733,2552.0,2551.9,0.97982]
[1646712192910,0.00544733,2552.0,2551.5,1.96005]
[1646712193111,0.0190057,2552.1,2551.5,1.96005]
[1646712193312,0.02445298,2552.1,2551.5,1.96005]
[1646712193711,0.1,2552.0,2551.5,1.96005]
[1646712194512,0.00533242,2551.9,2551.5,1.96005]
[1646712195553,0.1,2552.0,2551.5,1.96005]
[1646712195754,0.00533247,2551.8,2551.5,1.96005]
[1646712196154,0.00533247,2551.8,2551.3,1.96023]
[1646712196558,0.00533247,2551.8,2551.3,2.94038]
[1646712196758,0.1,2552.0,2551.3,2.94038]
[1646712196958,0.00533262,2551.7,2551.3,2.94038]
[1646712197159,0.00533262,2551.7,2551.5,2.17461186]
[1646712197359,0.00533262,2551.7,2551.6,3.5]
[1646712197859,0.1,2552.0,2551.5,3.15460186]
[1646712198060,0.1,2552.0,2551.5,6.65460186]
[1646712198261,0.00533754,2551.8,2551.5,1.96006]